lending/lending_fUSD_20251121
["ID","MTS","AMOUNT","RATE_DAILY","PERIOD"]
[394582189,1763735305659,-10000.01,0.00015346,2]
[394582190,1763735305710,-10000.01,0.00015346,2]
[394582191,1763735305734,-10000.01,0.00015346,2]
[394582192,1763735305789,-10000.01,0.00015346,2]
[394582193,1763735305816,-10000.01,0.00015346,2]
[394582194,1763735306233,-10000.01,0.00015346,2]
[394582195,1763735306261,-10000.01,0.00015346,2]
[394582196,1763735314095,-10000.01,0.00015346,2]
[394582197,1763735314399,-10000.01,0.00015346,2]
[394582198,1763735314511,-10000.01,0.00015346,2]
[394582199,1763735314627,-10000.01,0.00015346,2]
[394582200,1763735314758,-10000.01,0.00015346,2]
[394582201,1763735314874,-10000.01,0.00015346,2]
[394582202,1763735315023,-10000.01,0.00015346,2]
[394582203,1763735315119,-10000.01,0.00015346,2]
[394582204,1763735315240,-10000.01,0.00015346,2]
[394582205,1763735316226,-10000.01,0.00015346,2]
[394582206,1763735322310,-10000.01,0.00015346,2]
[394582207,1763735322504,-10000.01,0.00015346,2]
[394582208,1763735322627,-10000.01,0.00015346,2]
[394582209,1763735322788,-10000.01,0.00015346,2]
[394582210,1763735323014,-10000.01,0.00015346,2]
[394582211,1763735323137,-10000.01,0.00015346,2]
[394582212,1763735323192,-10000.01,0.00015346,2]
[394582213,1763735323332,-10000.01,0.00015346,2]
[394582214,1763735323658,-10000.01,0.00015346,2]
[394582215,1763735323794,-10000.01,0.00015346,2]
[394582216,1763735328556,-10000.01,0.00015346,2]
[394582217,1763735328770,-10000.01,0.00015346,2]
[394582218,1763735328949,-10000.01,0.00015346,2]
[394582219,1763735329069,-10000.01,0.00015346,2]
[394582220,1763735329227,-10000.01,0.00015346,2]
[394582221,1763735329361,-10000.01,0.00015346,2]
[394582222,1763735330239,1723.2,0.00015181,2]
[394582223,1763735331719,-10000.01,0.00015346,2]
[394582224,1763735331893,-10000.01,0.00015346,2]
[394582225,1763735332004,-10000.01,0.00015346,2]
[394582226,1763735332125,-10000.01,0.00015346,2]
[394582227,1763735339333,-500.0,0.00015345,2]
[394582228,1763735339367,-211.50240162,0.00015345,2]
[394582229,1763735339409,-500.0,0.00015345,2]
[394582230,1763735339713,-201.57845525,0.00015345,2]
[394582231,1763735339968,-3324.5823492,0.00015246,2]
[394582232,1763735339978,-3849.26593706,0.00015346,2]
[394582233,1763735340037,-10000.01,0.00015346,2]
[394582234,1763735340056,-10000.01,0.00015346,2]
[394582235,1763735340092,-10000.01,0.00015346,2]
[394582236,1763735340135,-10000.01,0.00015346,2]
[394582237,1763735340152,-10000.01,0.00015346,2]
[394582238,1763735340180,-10000.01,0.00015346,2]
[394582239,1763735340319,-10000.01,0.00015346,2]
[394582240,1763735340517,-10000.01,0.00015346,2]
[394582241,1763735340651,-10000.01,0.00015346,2]
[394582242,1763735347622,-300.0,0.00015345,2]
[394582243,1763735348485,-9400.01,0.00015346,2]
[394582244,1763735348838,-10000.01,0.00015346,2]
[394582245,1763735348862,-10000.01,0.00015346,2]
[394582246,1763735348906,-10000.01,0.00015346,2]
[394582247,1763735348931,-10000.01,0.00015346,2]
[394582248,1763735348963,-10000.01,0.00015346,2]
[394582249,1763735348991,-10000.01,0.00015346,2]
[394582250,1763735349023,-10000.01,0.00015346,2]
[394582251,1763735349047,-10000.01,0.00015346,2]
[394582252,1763735349083,-10000.01,0.00015346,2]
[394582253,1763735355953,-10000.01,0.00015346,2]
[394582254,1763735356121,-10000.01,0.00015346,2]
[394582255,1763735356278,-10000.01,0.00015346,2]
[394582256,1763735356404,-10000.01,0.00015346,2]
[394582257,1763735356537,-10000.01,0.00015346,2]
[394582258,1763735356691,-4901.4885083,0.00015346,2]
[394582259,1763735356731,-197.0329834,0.00015346,2]
[394582260,1763735356822,-2302.9670166,0.00015346,2]
[394582261,1763735356853,-194.01,0.00015395,3]
[394582262,1763735357707,291.27618921,0.00015446,2]
[394582294,1763735432229,-1000.0,0.00015446,2]
[394582295,1763735432238,-250.0,0.00015454,2]
[394582296,1763735432248,-250.0,0.00015491,2]
[394582297,1763735432257,-150.0,0.00015496,2]
[394582298,1763735432267,-1155.59,0.00015507,2]
[394582299,1763735432276,-150.0,0.00015507,2]
[394582300,1763735432525,-1200.0,0.00015524,2]
[394582301,1763735432538,-300.0,0.00015524,2]
[394582302,1763735432547,-39038.52,0.00015525,2]
[394582303,1763735432557,-166.66,0.00015525,2]
[394582304,1763735432567,-3324.58234917,0.00015541,2]
[394582305,1763735432578,-500.0,0.00015546,2]
[394582306,1763735432587,-502.8814518,0.00015546,2]
[394582308,1763735432597,-300.0,0.00015557,2]
[394582310,1763735432606,-26606.17,0.00015558,2]
[394582311,1763735432618,-200.0,0.00015564,2]
[394582313,1763735432633,-500.0,0.00015573,2]
[394582315,1763735432643,-500.0,0.00015573,2]
[394582317,1763735432652,-177.31023598,0.00015573,2]
[394582319,1763735432680,-322.68976402,0.00015573,2]
[394582320,1763735432690,-500.0,0.00015573,2]
[394582321,1763735432700,-500.0,0.00015573,2]
[394582322,1763735432709,-223.18413155,0.00015573,2]
[394582323,1763735432718,-500.0,0.00015573,2]
[394582325,1763735432728,-633.37706678,0.00015573,2]
[394582327,1763735432737,-500.0,0.00015573,2]
[394582328,1763735432747,-185.2605597,0.00015573,2]
[394582330,1763735434928,1004.94,0.00015446,2]
[394582331,1763735435005,1004.94,0.00015446,2]
[394582332,1763735435210,1004.94,0.00015446,2]
[394582340,1763735438225,-270.07149115,0.00015573,2]
[394582341,1763735438235,-500.0,0.00015573,2]
[394582342,1763735438245,-500.0,0.00015573,2]
[394582343,1763735438254,-188.22811824,0.00015573,2]
[394582344,1763735438264,-500.0,0.00015573,2]
[394582345,1763735438273,-500.0,0.00015573,2]
[394582346,1763735438283,-505.84228035,0.00015573,2]
[394582347,1763735438292,-502.1189758,0.00015573,2]
[394582348,1763735438302,-500.0,0.00015573,2]
[394582349,1763735438311,-1827.56,0.00015598,2]
[394582350,1763735438321,-1817.60372363,0.0001563,2]
[394582351,1763735438330,-1600.0,0.00015764,2]
[394582352,1763735438340,-1500.0,0.00015764,2]
[394582353,1763735438349,-1852.42,0.0001578,2]
[394582354,1763735438359,-3324.58234917,0.00015836,2]
[394582355,1763735438368,-166.66,0.00015839,2]
[394582356,1763735438385,-1817.60372363,0.00015914,2]
[394582357,1763735438395,-501.53916073,0.00016121,2]
[394582358,1763735438406,-500.0,0.00016121,2]
[394582359,1763735438416,-230.27415955,0.00016121,2]
[394582360,1763735438426,-1015.80477171,0.00016121,2]
[394582361,1763735438437,-1000.0,0.00016121,2]
[394582362,1763735438447,-500.0,0.00016121,2]
[394582363,1763735438457,-1000.0,0.00016121,2]
[394582364,1763735438466,-1000.0,0.00016121,2]
[394582365,1763735438477,-1000.0,0.00016121,2]
[394582366,1763735438488,-30.06610465,0.00016121,2]
[394582371,1763735438553,-469.93389535,0.00016121,2]
[394582373,1763735438563,-500.0,0.00016121,2]
[394582375,1763735438573,-1000.0,0.00016121,2]
[394582377,1763735438583,-3324.58234917,0.00016131,2]
[394582379,1763735438592,-150.99,0.00016149,2]
[394582381,1763735438603,-9999.99,0.00016149,2]
[394582383,1763735438614,-166.66,0.00016152,2]
[394582385,1763735438631,-152.02559123,0.00016197,2]
[394582387,1763735438640,-1817.60372363,0.00016197,2]
[394582389,1763735438650,-150.0,0.000162,2]
[394582391,1763735438660,-150.0,0.000162,2]
[394582393,1763735438670,-150.0,0.000162,2]
[394582395,1763735438680,-150.0,0.000162,2]
[394582397,1763735438691,-154.08670011,0.000162,2]
[394582399,1763735438701,-150.0,0.000162,2]
[394582401,1763735438712,-150.0,0.000162,2]
[394582403,1763735438722,-150.0,0.000162,2]
[394582405,1763735438733,-5000.00195349,0.000162,5]
[394582407,1763735438745,-1095.0,0.00016329,2]
[394582409,1763735438756,-200.0,0.00016329,2]
[394582411,1763735438766,-3324.58234917,0.00016426,2]
[394582413,1763735438776,-500.0,0.00016438,2]
[394582415,1763735438787,-542.23612941,0.00016438,2]
[394582417,1763735438797,-500.0,0.00016438,2]
[394582419,1763735438809,-500.0,0.00016438,2]
[394582421,1763735438819,-280.19395647,0.00016438,2]
[394582423,1763735438830,-511.36,0.00016438,2]
[394582425,1763735438840,-511.36,0.00016438,2]
[394582427,1763735438850,-511.36,0.00016438,2]
[394582429,1763735438860,-500.0,0.00016438,2]
[394582431,1763735438870,-584.96041728,0.00016438,2]
[394582433,1763735438888,-500.0,0.00016438,2]
[394582435,1763735438899,-6296.6,0.00016438,2]
[394582438,1763735438912,-166.66,0.00016466,2]
[394582439,1763735438922,-1817.60372363,0.00016481,2]
[394582441,1763735438931,-166.66,0.00016482,2]
[394582443,1763735438941,-151.0,0.00016543,2]
[394582445,1763735438951,-151.0,0.00016565,2]
[394582447,1763735438960,-151.0,0.00016575,2]
[394582449,1763735438970,-151.0,0.00016624,2]
[394582452,1763735438981,-1500.0,0.00016668,2]
[394582454,1763735438991,-1119.92517554,0.00016668,2]
[394582455,1763735439001,-1500.0,0.00016668,2]
[394582457,1763735439013,-1500.0,0.00016668,2]
[394582459,1763735439024,-1500.0,0.00016668,2]
[394582461,1763735439034,-510.0,0.00016677,2]
[394582463,1763735439044,-651.374,0.00016699,2]
[394582465,1763735439055,-500.0,0.00016712,2]
[394582468,1763735439065,-3324.58234917,0.0001672,2]
[394582470,1763735439076,-151.41,0.00016723,2]
[394582472,1763735439086,-1817.60372363,0.00016765,2]
[394582474,1763735439096,-500.0,0.00016873,2]
[394582476,1763735439106,-556.22649184,0.00016873,2]
[394582478,1763735439116,-500.0,0.00016873,2]
[394582480,1763735439133,-480.92272787,0.00016873,2]
[394582482,1763735439143,-500.0,0.00016873,2]
[394582483,1763735439152,-500.0,0.00016873,2]
[394582485,1763735439162,-500.0,0.00016873,2]
[394582487,1763735439171,-500.0,0.00016873,2]
[394582489,1763735439181,-343.16560066,0.00016873,2]
[394582492,1763735439191,-500.0,0.00016873,2]
[394582493,1763735439200,-502.00196538,0.00016873,2]
[394582495,1763735439210,-500.0,0.00016873,2]
[394582498,1763735439220,-160.8824245,0.00016873,2]
[394582499,1763735439230,-500.0,0.00016873,2]
[394582501,1763735439240,-300.0,0.0001688,2]
[394582503,1763735439250,-193.0,0.00016881,2]
[394582505,1763735439260,-1436.6283801,0.00016891,2]
[394582507,1763735439269,-564.06486891,0.00016891,2]
[394582509,1763735439279,-2400.0,0.000169,6]
[394582510,1763735439288,-358609.35654877,0.000169,2]
[394582511,1763735439298,-564.06486891,0.00016901,2]
[394582512,1763735439309,-322.0,0.00016907,2]
[394582513,1763735439320,-223.6937853,0.0001691,2]
[394582514,1763735439330,-2274.06283074,0.0001691,2]
[394582515,1763735439341,-537.6819669,0.0001691,2]
[394582516,1763735439351,-159.80558995,0.0001691,2]
[394582517,1763735439361,-564.06486891,0.0001691,2]
[394582518,1763735439370,-150.0,0.00016922,2]
[394582519,1763735439384,-500.0,0.00016973,2]
[394582520,1763735439394,-500.0,0.00016973,2]
[394582521,1763735439404,-500.0,0.00016973,2]
[394582522,1763735439414,-532.47636553,0.00016973,2]
[394582523,1763735439424,-500.0,0.00016973,2]
[394582524,1763735439434,-166.44209374,0.00016973,2]
[394582525,1763735439443,-162.44630647,0.00016973,2]
[394582526,1763735439452,-597.57535508,0.00016973,2]
[394582527,1763735439463,-500.75390662,0.00016973,2]
[394582528,1763735439472,-171.92327636,0.00016973,2]
[394582529,1763735439482,-500.0,0.00016973,2]
[394582530,1763735439491,-500.0,0.00016973,2]
[394582531,1763735439501,-164.07276883,0.00016973,2]
[394582532,1763735439511,-162.87587658,0.00016973,2]
[394582533,1763735439524,-500.0,0.00016973,2]
[394582534,1763735439533,-500.0,0.00016973,2]
[394582535,1763735439543,-500.0,0.00016973,2]
[394582536,1763735439552,-500.0,0.00016973,2]
[394582537,1763735439563,-502.46688489,0.00016973,2]
[394582538,1763735439572,-500.0,0.00016973,2]
[394582539,1763735439583,-164.81541385,0.00016973,2]
[394582540,1763735439592,-305.72760126,0.00016973,2]
[394582541,1763735439604,-500.0,0.00016973,2]
[394582542,1763735439614,-513.33377773,0.00016973,2]
[394582543,1763735439628,-505.12903491,0.00016973,2]
[394582544,1763735439637,-500.0,0.00016973,2]
[394582545,1763735439646,-1807.08,0.00016973,2]
[394582546,1763735439656,-420.0,0.00016981,2]
[394582547,1763735439666,-1081.74362509,0.00016985,5]
[394582548,1763735439676,-511.36,0.00016986,2]
[394582549,1763735439686,-511.36,0.00016986,2]
[394582550,1763735439696,-1004.94,0.00016986,2]
[394582551,1763735439705,-1004.94,0.00016986,2]
[394582552,1763735439715,-500.0,0.00016986,2]
[394582553,1763735439725,-469581.37,0.00016986,2]
[394582554,1763735439734,-1219.71735426,0.0001699,2]
[394582555,1763735439743,-1219.71735426,0.0001699,2]
[394582556,1763735439753,-200.0,0.00016991,2]
[394582557,1763735439763,-200.0,0.00016991,2]
[394582558,1763735439773,-200.0,0.00016991,2]
[394582559,1763735439782,-200.43996737,0.00016991,2]
[394582560,1763735439791,-6000.0,0.00016991,3]
[394582561,1763735439803,-2579.19773304,0.00016991,3]
[394582562,1763735439812,-250.0,0.00016991,2]
[394582563,1763735439822,-300.0,0.00016991,2]
[394582564,1763735439832,-300.0,0.00016991,2]
[394582565,1763735439842,-300.0,0.00016991,2]
[394582566,1763735439852,-300.0,0.00016991,2]
[394582567,1763735439861,-300.0,0.00016991,2]
[394582568,1763735439870,-300.0,0.00016991,2]
[394582569,1763735439886,-151.0,0.00016997,2]
[394582570,1763735439895,-151.0,0.00016997,2]
[394582571,1763735439905,-250.0,0.00017,2]
[394582572,1763735439915,-2000.0,0.00017,2]
[394582573,1763735439925,-2683476.98377283,0.00017,2]
[394582574,1763735439934,-322.0,0.0001701,2]
[394582575,1763735439944,-322.0,0.00017014,2]
[394582576,1763735439953,-3324.58234917,0.00017015,2]
[394582578,1763735439963,-322.0,0.0001704,2]
[394582579,1763735439973,-1817.60372363,0.00017049,2]
[394582580,1763735439983,-1680.0,0.00017067,2]
[394582581,1763735439993,-322.0,0.00017099,2]
[394582582,1763735440003,-150.0,0.000171,2]
[394582583,1763735440013,-150.0,0.000171,2]
[394582584,1763735440022,-2092.314228,0.000171,2]
[394582585,1763735440032,-701.23,0.00017132,2]
[394582586,1763735440042,-701.23,0.00017132,2]
[394582587,1763735440053,-426.56612961,0.00017153,2]
[394582588,1763735440063,-163.00731315,0.00017177,2]
[394582589,1763735440073,-1096.0,0.00017188,2]
[394582590,1763735440082,-2000.0,0.00017216,2]
[394582591,1763735440092,-1243.41019831,0.00017216,2]
[394582592,1763735440101,-232.07579854,0.00017216,2]
[394582593,1763735440110,-654.81537229,0.00017216,2]
[394582594,1763735440120,-159.80558995,0.0001724,2]
[394582595,1763735440135,-1807.08,0.00017247,2]
[394582596,1763735440145,-300.0,0.00017247,2]
[394582597,1763735440155,-500.0,0.0001726,2]
[394582598,1763735440165,-3600.0,0.000173,6]
[394582600,1763735440175,-322.0,0.00017308,2]
[394582602,1763735440185,-3324.58234917,0.0001731,2]
[394582603,1763735440195,-322.0,0.00017311,2]
[394582604,1763735440204,-1817.60372363,0.00017332,2]
[394582605,1763735440214,-1609.041,0.00017348,2]
[394582606,1763735440224,-822.0,0.00017348,2]
[394582607,1763735440233,-1256.0,0.00017348,2]
[394582608,1763735440243,-783.0,0.00017348,2]
[394582609,1763735440252,-1192.0,0.00017348,2]
[394582610,1763735440262,-908.0,0.00017348,2]
[394582611,1763735440271,-1328.86,0.00017348,2]
[394582612,1763735440280,-617.899,0.00017348,2]
[394582613,1763735440291,-3435.0,0.00017348,2]
[394582614,1763735440301,-322.0,0.0001738,2]
[394582615,1763735440311,-550.0,0.0001739,2]
[394582616,1763735440322,-322.0,0.00017392,2]
[394582617,1763735440331,-4900.0,0.000174,6]
[394582618,1763735440340,-2274.06283072,0.00017405,2]
[394582619,1763735440350,-537.6819669,0.00017405,2]
[394582620,1763735440360,-177.54,0.00017419,2]
[394582621,1763735440370,-1000.0,0.00017421,2]
[394582622,1763735440384,-1000.0,0.00017421,2]
[394582623,1763735440394,-1000.0,0.00017421,2]
[394582624,1763735440403,-500.7838585,0.00017421,2]
[394582625,1763735440412,-1000.0,0.00017421,2]
[394582626,1763735440422,-1000.0,0.00017421,2]
[394582627,1763735440431,-1000.0,0.00017421,2]
[394582628,1763735440442,-1000.0,0.00017421,2]
[394582629,1763735440451,-322.0,0.00017434,2]
[394582630,1763735440461,-550.0,0.00017453,2]
[394582631,1763735440470,-6100.0,0.000175,6]
[394582632,1763735440480,-322.0,0.00017505,2]
[394582633,1763735440489,-322.0,0.00017514,2]
[394582634,1763735440499,-322.0,0.0001752,2]
[394582635,1763735440509,-1000.0,0.00017521,2]
[394582636,1763735440518,-1000.0,0.00017521,2]
[394582637,1763735440528,-1000.0,0.00017521,2]
[394582638,1763735440543,-1000.0,0.00017521,2]
[394582639,1763735440553,-1000.0,0.00017521,2]
[394582640,1763735440563,-292.18778882,0.00017521,2]
[394582641,1763735440573,-436.43063603,0.00017521,2]
[394582642,1763735440582,-1000.0,0.00017521,2]
[394582643,1763735440592,-1000.0,0.00017521,2]
[394582644,1763735440602,-1000.0,0.00017521,2]
[394582645,1763735440614,-1000.0,0.00017521,2]
[394582646,1763735440628,-1000.0,0.00017521,2]
[394582647,1763735440637,-1807.08,0.00017521,2]
[394582648,1763735440647,-500.0,0.00017534,2]
[394582649,1763735440656,-322.0,0.00017551,2]
[394582650,1763735440666,-159.80558995,0.0001757,2]
[394582651,1763735440675,-1246.0,0.00017588,2]
[394582652,1763735440685,-1246.0,0.00017588,2]
[394582653,1763735440695,-1246.0,0.00017588,2]
[394582654,1763735440704,-1246.0,0.00017588,2]
[394582655,1763735440713,-1246.0,0.00017588,2]
[394582656,1763735440723,-1246.0,0.00017588,2]
[394582657,1763735440733,-1246.0,0.00017588,2]
[394582658,1763735440743,-1246.0,0.00017588,2]
[394582659,1763735440753,-1200.0,0.000176,6]
[394582660,1763735440763,-3324.58234917,0.00017605,2]
[394582661,1763735440773,-1817.60372363,0.00017616,2]
[394582662,1763735440783,-10127.7258081,0.00017628,2]
[394582663,1763735440792,-1237.37352836,0.00017629,2]
[394582664,1763735440802,-1028.45805342,0.00017639,2]
[394582665,1763735440811,-1070.03047284,0.00017639,2]
[394582666,1763735440821,-1113.17639017,0.00017639,2]
[394582667,1763735440831,-1095.50030319,0.00017639,2]
[394582668,1763735440841,-1072.2818843,0.00017639,2]
[394582669,1763735440851,-1009.27659737,0.0001764,2]
[394582670,1763735441042,-1142.62197689,0.0001764,2]
[394582671,1763735441052,-1118.74249072,0.0001764,2]
[394582672,1763735441061,-1110.49769199,0.0001764,2]
[394582673,1763735441071,-1140.73835832,0.0001764,2]
[394582674,1763735441080,-1101.96079686,0.0001764,2]
[394582675,1763735441089,-1070.5021287,0.0001764,2]
[394582676,1763735441099,-1128.01036178,0.0001764,2]
[394582677,1763735441108,-1120.96067095,0.0001764,2]
[394582678,1763735441117,-1077.96155008,0.0001764,2]
[394582679,1763735441132,-1133.78612319,0.0001764,2]
[394582680,1763735441142,-1108.91353882,0.0001764,2]
[394582681,1763735441151,-1025.27514155,0.0001764,2]
[394582682,1763735441160,-1145.40181434,0.0001764,2]
[394582683,1763735441170,-1026.07648504,0.0001764,2]
[394582684,1763735441179,-1791.85515714,0.0001764,2]
[394582685,1763735441189,-151.0,0.00017656,2]
[394582686,1763735441199,-151.0,0.00017656,2]
[394582687,1763735441208,-781.91515005,0.00017656,2]
[394582688,1763735441217,-151.0,0.00017656,2]
[394582689,1763735441227,-151.0,0.00017656,2]
[394582690,1763735441237,-151.0,0.00017656,2]
[394582691,1763735441246,-151.0,0.00017656,2]
[394582692,1763735441255,-151.0,0.00017656,2]
[394582693,1763735441265,-153.0,0.00017656,2]
[394582694,1763735441278,-151.0,0.00017656,2]
[394582695,1763735441287,-153.0,0.00017656,2]
[394582696,1763735441296,-151.0,0.00017656,2]
[394582697,1763735441306,-153.0,0.00017656,2]
[394582698,1763735441317,-153.0,0.00017656,2]
[394582699,1763735441327,-151.0,0.00017656,2]
[394582700,1763735441336,-157.84372152,0.00017656,2]
[394582701,1763735441345,-151.0,0.00017656,2]
[394582702,1763735441354,-151.0,0.00017656,2]
[394582703,1763735441364,-151.0,0.00017656,2]
[394582704,1763735441379,-154.98088878,0.00017656,2]
[394582705,1763735441388,-300.0,0.00017664,2]
[394582706,1763735441398,-204.7838812,0.00017671,2]
[394582707,1763735441407,-154.03692801,0.00017671,2]
[394582708,1763735441417,-150.0,0.00017671,2]
[394582709,1763735441426,-150.0,0.00017671,2]
[394582710,1763735441435,-205.51892774,0.00017671,2]
[394582711,1763735441444,-150.0,0.00017671,2]
[394582712,1763735441454,-500.0,0.00017671,2]
[394582713,1763735441463,-150.0,0.00017671,2]
[394582714,1763735441473,-200.0,0.00017671,2]
[394582715,1763735441482,-500.0,0.00017671,2]
[394582716,1763735441491,-150.0,0.00017671,2]
[394582717,1763735441500,-500.0,0.00017671,2]
[394582718,1763735441509,-300.0,0.00017685,2]
[394582719,1763735441521,-300.0,0.00017686,2]
[394582720,1763735441531,-300.0,0.00017688,2]
[394582721,1763735441542,-300.0,0.0001769,2]
[394582722,1763735441551,-300.0,0.00017696,2]
[394582723,1763735441562,-300.0,0.00017698,2]
[394582724,1763735441571,-300.0,0.00017698,2]
[394582725,1763735441580,-1200.0,0.000177,6]
[394582726,1763735441590,-403.0,0.000177,5]
[394582727,1763735441599,-300.0,0.00017707,2]
[394582728,1763735441609,-300.0,0.00017709,2]
[394582729,1763735441619,-300.0,0.00017711,2]
[394582730,1763735441634,-300.0,0.00017714,2]
[394582731,1763735441643,-300.0,0.0001773,2]
[394582732,1763735441652,-300.0,0.0001773,2]
[394582733,1763735441662,-300.0,0.00017731,2]
[394582734,1763735441672,-300.0,0.00017734,2]
[394582735,1763735441682,-1600.0,0.00017734,2]
[394582736,1763735441693,-300.0,0.00017741,2]
[394582737,1763735441703,-150.0,0.00017746,2]
[394582738,1763735441713,-511.36,0.0001775,2]
[394582739,1763735441723,-25000.0,0.0001775,3]
[394582740,1763735441736,-426.56612961,0.0001775,3]
[394582741,1763735441747,-300.0,0.00017753,2]
[394582742,1763735441757,-300.0,0.00017757,2]
[394582743,1763735441767,-1000.0,0.00017759,2]
[394582744,1763735441777,-300.0,0.0001776,2]
[394582745,1763735441787,-2006.79679862,0.00017764,2]
[394582746,1763735441797,-300.0,0.00017771,2]
[394582747,1763735441806,-300.0,0.00017774,2]
[394582748,1763735441816,-300.0,0.00017777,2]
[394582749,1763735441825,-300.0,0.00017779,2]
[394582750,1763735441835,-300.0,0.00017779,2]
[394582751,1763735441845,-300.0,0.00017783,2]
[394582752,1763735441854,-300.0,0.00017785,2]
[394582753,1763735441864,-300.0,0.0001779,2]
[394582754,1763735441880,-300.0,0.00017791,2]
[394582755,1763735441890,-300.0,0.00017793,2]
[394582756,1763735441899,-1807.08,0.00017795,2]
[394582757,1763735441908,-300.0,0.00017798,2]
[394582758,1763735441918,-300.0,0.00017799,2]
[394582759,1763735441928,-300.0,0.00017799,2]
[394582760,1763735441938,-1200.0,0.000178,6]
[394582761,1763735441948,-150.0,0.00017808,2]
[394582762,1763735441957,-150.0,0.00017808,2]
[394582763,1763735441967,-150.0,0.00017808,2]
[394582764,1763735441977,-500.0,0.00017808,2]
[394582765,1763735441986,-150.0,0.00017808,2]
[394582766,1763735441996,-500.0,0.00017808,2]
[394582767,1763735442006,-500.0,0.00017808,2]
[394582768,1763735442016,-500.0,0.00017808,2]
[394582769,1763735442026,-500.0,0.00017808,2]
[394582770,1763735442035,-300.0,0.00017811,2]
[394582771,1763735442044,-300.0,0.00017811,2]
[394582772,1763735442053,-300.0,0.00017814,2]
[394582773,1763735442063,-300.0,0.00017817,2]
[394582774,1763735442072,-906.35702,0.0001782,2]
[394582775,1763735442082,-300.0,0.00017829,2]
[394582776,1763735442091,-300.0,0.00017833,2]
[394582777,1763735442101,-300.0,0.00017835,2]
[394582778,1763735442110,-300.0,0.00017839,2]
[394582779,1763735442120,-300.0,0.00017839,2]
[394582780,1763735442135,-300.0,0.00017839,2]
[394582781,1763735442145,-300.0,0.0001784,2]
[394582782,1763735442155,-300.0,0.00017841,2]
[394582783,1763735442164,-300.0,0.00017843,2]
[394582784,1763735442173,-300.0,0.00017844,2]
[394582785,1763735442182,-300.0,0.00017844,2]
[394582786,1763735442192,-300.0,0.00017844,2]
[394582787,1763735442202,-300.0,0.00017852,2]
[394582788,1763735442211,-1246.0,0.00017854,2]
[394582789,1763735442220,-1246.0,0.00017854,2]
[394582790,1763735442230,-1246.0,0.00017854,2]
[394582791,1763735442240,-1301.83786048,0.00017854,2]
[394582792,1763735442251,-500.0,0.00017855,2]
[394582793,1763735442260,-300.0,0.00017855,2]
[394582794,1763735442270,-500.0,0.00017855,2]
[394582795,1763735442279,-500.0,0.00017855,2]
[394582796,1763735442288,-500.0,0.00017856,2]
[394582797,1763735442297,-500.0,0.00017856,2]
[394582798,1763735442306,-500.0,0.00017856,2]
[394582799,1763735442315,-500.0,0.00017856,2]
[394582800,1763735442324,-500.0,0.00017856,2]
[394582801,1763735442335,-500.0,0.00017856,2]
[394582802,1763735442345,-200.0,0.00017856,2]
[394582803,1763735442354,-300.0,0.00017861,2]
[394582804,1763735442364,-300.0,0.00017863,2]
[394582805,1763735442379,-300.0,0.00017865,2]
[394582806,1763735442388,-300.0,0.00017867,2]
[394582807,1763735442399,-300.0,0.0001787,2]
[394582808,1763735442408,-300.0,0.00017871,2]
[394582809,1763735442417,-300.0,0.00017874,2]
[394582810,1763735442427,-300.0,0.00017874,2]
[394582811,1763735442437,-300.0,0.00017875,2]